bitfinex/quotes_ETHUSD_20240719
["timestamp","ask_amount","ask_price","bid_price","bid_amount"]
[1721351763556,3.42606334,3401.8,3400.6,2.3285]
[1721351763772,2.94011,3401.3,3400.6,2.3285]
[1721351764003,5.97382734,3401.7,3400.7,2.94056]
[1721351764161,0.03392035,3401.2,3400.8,2.94047]
[1721351764499,3.97389251,3401.6,3400.8,2.94047]
[1721351764793,3.97389251,3401.6,3400.7,2.94056]
[1721351764959,0.03397338,3401.5,3400.9,2.94039]
[1721351765384,0.03397338,3401.5,3401.1,2.94017]
[1721351765571,2.93946,3402.0,3401.1,2.94017]
[1721351765769,0.03386045,3401.4,3401.2,2.94007]
[1721351766091,3.0,3401.9,3401.2,2.94007]
[1721351766392,3.80639726,3402.2,3401.4,2.93995]
[1721351766595,6.80639726,3402.2,3401.4,2.93995]
[1721351766767,3.80639726,3402.2,3401.4,2.93995]
[1721351766966,3.03399099,3402.1,3401.4,2.93995]
[1721351767172,3.03399099,3402.1,3401.2,2.94006]
[1721351767173,2.93949,3402.0,3401.2,2.94006]
[1721351767368,2.97348423,3402.0,3401.2,2.94006]
[1721351767567,2.97348423,3402.0,3401.2,5.88012]
[1721351767883,2.97348423,3402.0,3401.3,2.94003]
[1721351768095,4.04892755,3402.0,3401.3,2.94003]
[1721351768294,1.10943755,3402.0,3401.4,2.93996]
[1721351769397,1.10943755,3402.0,3401.4,2.93991]
[1721351769585,0.03399423,3402.0,3401.4,2.93991]
[1721351769762,0.46090154,3402.2,3401.4,2.93991]
[1721351769965,0.03396673,3401.9,3401.6,2.93974]
[1721351770196,0.46090154,3402.2,3401.6,2.93974]
[1721351770401,0.03393923,3401.8,3401.6,2.93974]
[1721351770606,0.46090154,3402.2,3401.6,2.93974]
[1721351770762,1.39482069,3402.2,3401.6,2.93974]
[1721351770963,0.03402172,3402.1,3401.6,2.93974]
[1721351772264,0.03402172,3402.1,3401.4,5.25061]
[1721351772474,0.03402172,3402.1,3401.6,2.93977]
[1721351773178,0.03402172,3402.1,3401.4,8.19049]
[1721351773574,0.03402172,3402.1,3401.5,2.93986]
[1721351775491,0.03402172,3402.1,3401.5,5.87969]
[1721351775671,0.03402172,3402.1,3401.5,3.758869]
[1721351775876,0.03402172,3402.1,3401.6,2.93978]
[1721351776104,0.03402172,3402.1,3401.7,2.93969]
[1721351776975,0.03402172,3402.1,3401.9,2.93945]
[1721351777175,10.73346,3402.8,3401.9,2.93945]
[1721351777176,3.0,3402.7,3401.9,2.93945]
[1721351777364,3.0,3402.7,3402.1,2.93935]
[1721351777837,0.03424458,3402.6,3402.1,2.93935]
[1721351777996,0.03424458,3402.6,3401.9,2.93945]
[1721351778269,0.03424458,3402.6,3402.0,2.93942]
[1721351779199,0.03424458,3402.6,3402.1,5.87865]
[1721351779403,0.03424458,3402.6,3402.1,2.9393]
[1721351779617,0.03424458,3402.6,3402.3,2.93912]
[1721351780279,0.46076049,3402.9,3402.2,2.93926]
[1721351780482,0.46076049,3402.9,3401.4,2.3107]
[1721351780483,0.03436002,3402.5,3401.7,2.93964]
[1721351780700,2.93923,3402.3,3401.5,2.93984]
[1721351780987,0.03448232,3402.2,3401.5,2.93984]
[1721351781193,0.03448232,3402.2,3401.3,2.94002]
[1721351781194,2.93959,3401.9,3401.2,2.94013]
[1721351781689,0.03440168,3401.8,3401.3,2.94]
[1721351782215,0.03437419,3401.7,3401.3,2.94]
[1721351782508,5.48244,3402.0,3401.3,2.94]
[1721351782679,0.03434669,3401.6,3401.3,2.94]
[1721351782861,6.45966412,3402.0,3401.3,2.94]
[1721351783067,0.03431919,3401.5,3401.1,2.94015]
[1721351783370,0.03429169,3401.4,3401.1,2.94015]
[1721351783707,2.94015,3401.2,3400.4,2.94078]
[1721351783877,2.94037,3401.0,3400.0,2.94115]
[1721351784096,2.94076,3400.5,3399.6,2.94148]
[1721351784295,2.543,3400.8,3399.6,2.94148]
[1721351784499,3.0,3400.7,3399.7,2.94141]
[1721351784680,0.903351,3400.6,3399.7,2.94141]
[1721351785082,0.03402062,3400.5,3399.7,2.94141]
[1721351785338,0.03402062,3400.5,3399.8,2.94132]
[1721351785508,0.03402062,3400.5,3400.0,2.9411]
[1721351785895,3.0,3400.7,3399.6,2.94149]
[1721351786118,0.03384095,3400.4,3399.8,2.94132]
[1721351786420,0.03358174,3400.3,3399.7,2.94143]
[1721351786600,2.94074,3400.5,3399.8,2.94134]
[1721351786796,0.03358372,3400.2,3399.8,2.94134]
[1721351786995,2.94074,3400.5,3399.8,2.94134]
[1721351787324,0.0335562,3400.1,3399.8,2.94134]
[1721351787506,1.2272568,3400.5,3399.8,2.94134]
[1721351787690,0.03344018,3400.0,3399.8,2.94134]
[1721351787891,4.1679968,3400.5,3399.6,2.94145]
[1721351788101,0.03344215,3399.9,3399.6,2.94145]
[1721351788311,4.1679968,3400.5,3399.6,2.94145]
[1721351788511,0.03341463,3399.8,3399.7,2.94142]
[1721351789021,3.0,3400.7,3399.2,6.03982]
[1721351789229,3.0,3400.7,3400.0,2.94117]
[1721351789450,3.0,3401.0,3400.3,2.94091]
[1721351790603,3.294015,3401.1,3400.3,2.94091]
[1721351791015,6.234235,3401.1,3400.3,2.94091]
[1721351791837,2.94063,3400.7,3399.9,2.94124]
[1721351792040,0.842403,3400.6,3399.9,2.94124]
[1721351792406,2.94076,3400.5,3399.7,2.94142]
[1721351792611,2.543,3400.4,3399.8,2.94134]
[1721351792812,2.57654761,3400.4,3399.8,2.94134]
[1721351793812,2.57654761,3400.4,3399.6,2.94151]
[1721351794031,2.57654761,3400.4,3399.7,2.94143]
[1721351794559,0.03354761,3400.4,3399.7,0.31151805]
[1721351794713,0.03354761,3400.4,3400.3,2.94091]
[1721351794905,2.543,3401.2,3400.3,2.94091]
[1721351795103,0.03342449,3400.4,3400.3,5.88182]
[1721351795355,7.42,3401.4,3400.6,2.94065]
[1721351795537,1.52341,3401.3,3400.6,2.94065]
[1721351795744,5.2711,3401.5,3400.6,2.94065]
[1721351795898,0.03375256,3401.2,3400.6,2.94065]
[1721351796101,2.9399,3401.5,3400.6,2.94065]
[1721351796346,0.03372505,3401.1,3400.6,2.94065]
[1721351796508,2.9399,3401.5,3400.6,2.94065]
[1721351796711,0.03369755,3401.0,3400.6,2.94065]
[1721351796906,3.0,3401.4,3400.6,2.94065]
[1721351797143,0.03367004,3400.9,3400.6,2.94065]
[1721351797322,3.0,3401.4,3400.2,2.94096]
[1721351797518,0.03349345,3400.8,3400.3,2.94091]
[1721351797755,3.0,3401.5,3400.9,2.94034]
[1721351798043,0.03376415,3401.4,3400.9,2.94034]
[1721351798957,0.03376415,3401.4,3400.7,2.94051]
[1721351799339,2.94008,3401.3,3400.5,2.9407]
[1721351799635,0.03372388,3401.2,3400.6,2.94065]
[1721351800936,5.4833,3401.1,3400.3,2.94084]
[1721351801269,0.03375731,3401.0,3400.5,2.94074]
[1721351801711,0.03375731,3401.0,3400.3,2.94084]
[1721351802117,2.543,3400.7,3399.7,2.94138]
[1721351802452,2.94071,3400.6,3399.8,2.94134]
[1721351802652,5.94071,3400.6,3399.8,2.94134]
[1721351802851,2.97437126,3400.5,3399.6,2.94147]
[1721351803057,2.94092,3400.3,3399.4,2.94162]
[1721351803354,2.97437126,3400.5,3399.6,2.94149]
[1721351803355,0.03367725,3400.4,3399.6,2.94149]
[1721351803518,0.03355923,3400.2,3399.6,2.94144]
[1721351803723,0.03358675,3400.3,3399.7,2.94142]
[1721351804036,0.03358091,3400.1,3399.7,2.94142]
[1721351804256,1.14582373,3400.4,3399.7,2.94142]
[1721351804569,0.03345999,3400.0,3399.7,2.94142]
[1721351804864,3.0,3400.6,3400.1,2.94108]
[1721351805718,7.42,3400.9,3400.1,2.94108]
[1721351805719,3.0,3400.8,3400.3,2.9409]
[1721351806147,3.64083037,3401.0,3400.1,2.94103]
[1721351806413,2.94041,3400.9,3400.1,2.94102]
[1721351806859,3.0,3400.8,3400.1,2.94102]
[1721351807355,4.20645104,3400.8,3400.1,2.94102]
[1721351808059,2.94075,3400.5,3399.8,2.94134]
[1721351808355,2.94066,3400.6,3399.9,2.94125]
[1721351808662,0.0332937,3400.5,3399.9,2.94125]
[1721351809928,0.0332937,3400.5,3399.9,2.94117]
[1721351810134,0.0332937,3400.5,3400.1,2.94101]
[1721351811229,0.0332937,3400.5,3399.9,2.94119]
[1721351813373,0.0332937,3400.5,3400.0,2.94117]
[1721351814066,0.0332937,3400.5,3400.1,2.94108]
[1721351814239,0.0332937,3400.5,3400.3,2.9409]
[1721351814960,0.0332937,3400.5,3400.3,2.94085]
[1721351815124,0.0332937,3400.5,3400.4,3.467145]
[1721351815321,2.543,3401.1,3400.4,3.467145]
[1721351815575,0.03316383,3400.5,3400.4,2.94083]
[1721351815727,2.543,3401.9,3401.0,2.94025]
[1721351816067,2.543,3401.9,3401.2,2.94008]
[1721351816274,2.93931,3402.2,3401.4,2.93995]
[1721351816762,2.93936,3402.1,3401.4,2.93995]
[1721351817060,0.842167,3402.0,3401.2,5.88014]
[1721351817238,0.842167,3402.0,3401.2,2.94006]
[1721351817443,2.543,3401.9,3401.2,2.94006]
[1721351817937,2.543,3401.5,3400.6,2.94061]
[1721351818136,0.548281,3401.4,3400.6,2.94061]
[1721351818527,0.548281,3401.4,3400.3,2.4539]
[1721351818528,0.548281,3401.4,3400.8,2.94042]
[1721351818727,0.548281,3401.4,3401.0,2.9403]
[1721351819665,2.543,3401.9,3400.8,2.94044]
[1721351819855,2.543,3401.9,3400.4,2.94078]
[1721351819856,3.0,3401.8,3401.4,2.93994]
[1721351820052,3.0,3401.8,3401.3,2.94003]
[1721351820053,3.0,3401.8,3401.2,2.94006]
[1721351820764,3.0,3401.8,3400.6,2.3359]
[1721351820971,2.543,3401.5,3400.9,2.94037]
[1721351821168,0.2543,3401.4,3400.7,2.9405]
[1721351821370,0.2543,3401.4,3400.8,2.94048]
[1721351821692,0.2543,3401.4,3400.6,2.9406]
[1721351821969,3.19427,3401.4,3400.7,2.94056]
[1721351822173,2.94017,3401.2,3400.3,2.94088]
[1721351822356,2.94041,3400.9,3400.1,2.94102]
[1721351822555,2.94041,3400.9,3400.2,2.94098]
[1721351822971,5.48357,3400.7,3399.9,2.94121]
[1721351823487,0.03351311,3400.6,3399.9,2.94121]
[1721351823650,0.03351311,3400.6,3399.9,5.8824]
[1721351823850,0.03351311,3400.6,3398.9,2.3696]
[1721351823851,2.543,3400.3,3398.9,2.3696]
[1721351824190,2.543,3400.3,3398.4,5.31215]
[1721351824191,2.543,3399.2,3398.4,5.31215]
[1721351824555,0.03275082,3399.1,3398.4,5.31215]
[1721351824749,0.03275082,3399.1,3398.2,2.94268]
[1721351825092,0.03275082,3399.1,3398.1,2.94273]
[1721351825093,0.03275082,3399.1,3398.3,2.94264]
[1721351825500,2.543,3398.8,3397.9,5.31257]
[1721351825699,2.9423,3398.7,3397.9,5.31257]
[1721351825996,0.03250757,3398.7,3398.1,2.94275]
[1721351826567,2.94213,3398.9,3398.1,2.94275]
[1721351826768,0.03250816,3398.6,3398.1,2.94275]
[1721351826967,2.94213,3398.9,3398.1,2.94275]
[1721351827186,0.03234435,3398.5,3398.1,2.94275]
[1721351827389,2.94227,3398.8,3397.9,2.94299]
[1721351827588,0.03231795,3398.4,3397.9,2.94299]
[1721351827798,2.94227,3398.8,3397.9,2.94299]
[1721351828003,0.03228906,3398.3,3397.9,2.94299]
[1721351828203,2.94227,3398.8,3397.9,2.94299]
[1721351828503,0.3398,3399.1,3398.1,2.94282]
[1721351828816,0.03227514,3398.7,3397.7,2.94314]
[1721351829110,0.3398,3399.1,3397.8,2.94307]
[1721351829111,2.94241,3398.6,3397.8,2.94307]
[1721351829317,2.97432825,3398.6,3397.8,2.94307]
[1721351829874,0.03191825,3398.6,3397.4,2.3579]
[1721351830307,0.03191825,3398.6,3397.9,2.94296]
[1721351830503,2.94226,3398.8,3397.9,2.94296]
[1721351830804,0.0318563,3398.5,3397.9,2.94296]
[1721351830978,2.94231,3398.7,3397.9,2.94296]
[1721351831177,3.49207,3399.0,3398.2,2.94267]
[1721351831178,0.03230334,3398.4,3398.2,2.94267]
[1721351831387,3.0,3398.9,3398.1,2.94281]
[1721351831681,4.210149,3398.9,3398.1,2.94281]
[1721351831881,0.03242821,3398.8,3398.1,2.94281]
[1721351832482,2.94234,3398.7,3397.9,2.94296]
[1721351832681,2.97474067,3398.7,3397.9,2.94296]
[1721351833478,0.03240067,3398.7,3398.0,2.94289]
[1721351833678,4.210159,3398.9,3398.1,2.9428]
[1721351833679,4.210099,3398.9,3398.1,2.9428]
[1721351833986,0.03242396,3398.6,3398.1,2.9428]
[1721351834213,2.94213,3398.9,3398.2,2.94273]
[1721351834515,2.94213,3398.9,3398.0,2.94289]
[1721351834516,2.94223,3398.8,3398.0,2.94289]
[1721351834680,2.94232,3398.7,3397.9,2.94293]
[1721351834875,0.5916929,3398.6,3397.9,2.94293]
[1721351835081,0.62411151,3398.6,3398.0,2.9429]
[1721351835379,0.03241861,3398.6,3398.0,2.9429]
[1721351835603,0.03241861,3398.6,3397.8,2.94301]
[1721351835790,2.94232,3398.7,3397.8,2.94301]
[1721351835994,0.03239107,3398.5,3397.9,2.94296]
[1721351836202,5.25777573,3398.6,3397.9,2.94296]
[1721351836404,0.03223064,3398.4,3397.9,2.94296]
[1721351836606,0.03225819,3398.5,3397.8,2.94301]
[1721351836805,0.03220309,3398.3,3397.8,2.94301]
[1721351837117,0.03218491,3398.2,3398.0,2.94289]
[1721351837301,2.94226,3398.8,3398.0,2.94289]
[1721351837507,0.03215736,3398.1,3398.0,2.94289]
[1721351837707,7.039654,3398.8,3398.0,2.94289]
[1721351837708,2.9423,3398.7,3398.0,2.94289]
[1721351837903,0.03215736,3398.1,3398.0,2.94289]
[1721351838103,0.46123644,3398.7,3398.0,2.94289]
[1721351838418,0.03215736,3398.1,3398.0,2.94289]
[1721351838617,0.46123644,3398.7,3397.7,2.94312]
[1721351838920,0.46123644,3398.7,3397.3,3.0935639]
[1721351838921,0.03228573,3398.6,3398.0,2.94284]
[1721351839834,0.03228573,3398.6,3398.1,2.94282]
[1721351840527,0.03228573,3398.6,3398.1,2.94273]
[1721351840729,0.03228573,3398.6,3398.2,2.94266]
[1721351841045,0.03228573,3398.6,3397.7,2.3485]
[1721351841046,0.38163795,3398.6,3397.7,2.94313]
[1721351841333,2.94248,3398.5,3397.6,2.9432]
[1721351841515,2.97468953,3398.5,3397.6,2.9432]
[1721351842831,2.94265,3398.3,3397.6,2.9432]
[1721351843137,2.97468953,3398.5,3397.4,2.94336]
[1721351843138,6.37283747,3398.2,3397.4,2.94336]
[1721351843429,2.94289,3398.1,3397.3,0.1500639]
[1721351843737,0.03205173,3398.0,3397.3,0.1500639]
[1721351843913,0.03205173,3398.0,3397.3,3.0935639]
[1721351844248,0.03205173,3398.0,3397.3,0.1500639]
[1721351844445,0.03205173,3398.0,3397.4,2.94341]
[1721351844734,0.03205173,3398.0,3397.6,2.94322]
[1721351844933,0.03205173,3398.0,3397.8,2.94302]
[1721351845132,3.0,3398.6,3398.1,2.94279]
[1721351845300,0.46123644,3398.7,3398.3,2.94261]
[1721351845504,2.94191,3399.2,3398.3,2.94261]
[1721351845705,1.914254,3399.1,3398.3,2.94257]
[1721351845913,1.914254,3399.1,3398.0,2.94289]
[1721351845914,2.37547602,3399.1,3398.0,2.94289]
[1721351846114,2.37547602,3399.1,3398.4,2.9425]
[1721351846314,5.31744602,3399.1,3398.2,2.94265]
[1721351846613,5.94204,3399.0,3398.2,2.94267]
[1721351846806,1.1259396,3398.9,3398.2,2.94267]
[1721351847150,1.1259396,3398.9,3398.1,2.94279]
[1721351847440,2.94221,3398.8,3398.1,2.94282]
[1721351847938,3.0,3398.7,3398.1,2.94282]
[1721351848159,3.0,3398.7,3398.1,2.94274]
[1721351848361,2.549,3398.7,3398.2,2.94272]
[1721351848648,3.0,3398.6,3398.1,2.94274]
[1721351849543,3.0,3398.6,3398.1,5.8855]
[1721351849937,3.0,3398.6,3398.1,2.94274]
[1721351850123,3.0,3398.6,3398.3,2.94264]
[1721351850852,3.0,3398.6,3398.1,2.94274]
[1721351851639,3.0,3398.6,3398.1,5.88549]
[1721351851837,3.0,3398.6,3398.1,2.94274]
[1721351852572,3.0,3398.6,3398.3,2.94259]
[1721351852725,3.0,3398.6,3397.7,2.94308]
[1721351852726,8.7954,3398.6,3397.7,2.94308]
[1721351852921,2.549,3398.3,3397.7,2.94308]
[1721351853142,2.549,3397.9,3397.4,2.94339]
[1721351853576,0.03229689,3397.8,3397.4,2.94339]
[1721351854277,0.03229689,3397.8,3397.5,2.94331]
[1721351855442,3.0,3398.2,3397.7,2.94316]
[1721351855667,0.03238889,3398.1,3397.5,2.94327]
[1721351855883,0.03238889,3398.1,3397.5,5.88653]
[1721351856283,0.03238889,3398.1,3397.7,2.94316]
[1721351856577,0.03238889,3398.1,3397.5,2.94326]
[1721351856747,0.03238889,3398.1,3397.6,2.94319]
[1721351857491,0.88479278,3398.1,3397.5,2.94333]
[1721351857784,0.03238889,3398.1,3397.7,2.94314]
[1721351858163,0.03238889,3398.1,3397.8,2.94302]
[1721351858787,0.03238889,3398.1,3397.7,2.94314]
[1721351859150,0.03238889,3398.1,3397.5,2.94331]
[1721351859573,0.03238889,3398.1,3397.5,5.88658]
[1721351860314,0.88479378,3398.1,3397.3,3.0934939]
[1721351860621,0.88479378,3398.1,3397.4,2.94342]
[1721351861821,0.88479378,3398.1,3397.5,2.94332]
[1721351862899,0.03238889,3398.1,3397.5,2.94332]
[1721351863581,0.03238889,3398.1,3397.3,3.0934939]
[1721351863582,2.97523889,3398.1,3397.4,2.94341]
[1721351863787,3.0,3398.0,3397.4,2.94341]
[1721351864331,0.0323338,3397.9,3397.3,3.0934939]
[1721351864618,0.0323338,3397.9,3397.3,6.0369539]
[1721351865209,0.0323338,3397.9,3397.3,3.0934939]
[1721351865544,0.0323338,3397.9,3397.5,2.94332]
[1721351866018,3.0,3398.2,3397.3,0.1500639]
[1721351866229,0.03224875,3397.8,3397.3,0.68833429]
[1721351866384,3.0,3398.2,3397.7,2.94311]
[1721351867322,3.0,3398.2,3397.8,2.943]
[1721351867908,0.03233139,3398.1,3397.8,2.943]
[1721351868129,0.03233139,3398.1,3397.7,2.9431]
[1721351869203,0.88472153,3398.1,3397.5,2.9433]
[1721351869939,0.88472153,3398.1,3397.7,2.94316]
[1721351870147,0.03233139,3398.1,3397.7,2.94316]
[1721351870726,0.03233139,3398.1,3397.7,5.88626]
[1721351870910,0.03233139,3398.1,3397.9,2.94293]
[1721351871115,0.03233139,3398.1,3398.0,2.9429]
[1721351871556,3.0,3398.6,3398.0,2.9429]
[1721351871867,0.03245092,3398.5,3397.8,2.94301]
[1721351872062,5.49166,3398.3,3397.6,5.88635]
[1721351872226,5.49166,3398.3,3397.6,5.88636]
[1721351872227,3.0,3398.2,3397.6,5.88636]
[1721351872551,3.0,3398.2,3397.6,2.94317]
[1721351872552,0.03233139,3398.1,3397.6,2.94317]
[1721351872714,0.03233139,3398.1,3397.4,2.94335]
[1721351872914,0.59046453,3398.1,3397.5,2.94326]
[1721351874827,0.59046453,3398.1,3397.5,5.88653]
[1721351875041,0.03233139,3398.1,3397.5,5.88653]
[1721351875246,0.03233139,3398.1,3397.5,2.94326]
[1721351879764,0.03233139,3398.1,3397.3,3.0935039]
[1721351880394,0.03233139,3398.1,3397.6,2.94324]
[1721351880594,0.03233139,3398.1,3397.7,2.94308]
[1721351881007,0.03233139,3398.1,3397.7,5.88618]
[1721351881162,5.94248,3398.5,3397.7,2.94308]
[1721351881361,0.03241939,3398.4,3397.7,2.94308]
[1721351881921,5.49165,3398.3,3397.6,2.94323]
[1721351882063,3.03238703,3398.2,3397.6,2.94323]
[1721351882460,3.03238703,3398.2,3397.6,2.9432]
[1721351882767,3.03238703,3398.2,3397.5,2.94328]
[1721351883009,3.0,3398.1,3397.9,2.94292]
[1721351883226,0.03238703,3398.2,3397.9,2.94292]
[1721351883395,0.03221524,3398.0,3397.7,2.94309]
[1721351883604,2.94248,3398.5,3397.8,2.94308]
[1721351883829,0.0322615,3397.9,3397.8,5.88608]
[1721351884042,1.82736564,3399.0,3398.4,2.94251]
[1721351884182,3.01022202,3399.1,3398.4,2.94251]
[1721351884523,3.01022202,3399.1,3398.6,2.94231]
[1721351884883,0.46122202,3399.1,3398.9,2.94207]
[1721351885225,2.549,3399.5,3398.9,2.94207]
[1721351885383,0.73178098,3399.4,3398.9,2.94207]
[1721351885585,0.73178098,3399.4,3399.1,2.94189]
[1721351885806,2.549,3399.5,3399.1,2.94189]
[1721351886624,2.549,3399.5,3399.2,2.94186]
[1721351887536,3.0,3399.8,3399.4,2.94167]
[1721351887893,3.0,3399.8,3399.6,2.94152]
[1721351888168,2.549,3400.3,3399.7,2.94138]
[1721351888290,4.7995,3400.7,3400.0,2.94116]
[1721351888491,0.6624514,3400.6,3400.0,2.94116]
[1721351888789,3.6031214,3400.6,3399.9,2.94125]
[1721351888989,2.549,3400.3,3399.3,2.94172]
[1721351889186,2.549,3399.8,3399.4,2.94164]
[1721351889626,3.0,3399.7,3399.4,2.94164]
[1721351893644,3.0,3399.7,3399.2,2.94179]
[1721351894546,3.0,3399.7,3399.3,2.94175]
[1721351894547,3.5549,3399.7,3399.3,2.94175]
[1721351894719,2.94193,3399.2,3398.8,7.47]
[1721351894920,2.549,3399.0,3398.4,2.9425]
[1721351895157,5.4911,3399.0,3398.2,2.4234]
[1721351895368,2.94248,3398.5,3397.8,2.94305]
[1721351895661,5.94262,3398.4,3397.6,2.94324]
[1721351895844,2.94265,3398.3,3397.6,2.94324]
[1721351896062,3.0,3398.2,3397.6,2.94324]
[1721351896258,3.0,3398.2,3397.7,2.94316]
[1721351896429,1.143413,3398.3,3397.7,2.94316]
[1721351897464,1.143413,3398.3,3397.5,2.94326]
[1721351897937,0.03256527,3398.2,3397.5,2.94326]
[1721351898142,6.6056597,3398.2,3397.4,2.94339]
[1721351898338,3.6056597,3398.2,3397.4,2.94339]
[1721351898534,3.0,3398.1,3397.4,2.94339]
[1721351898758,3.03252296,3398.1,3397.4,2.94339]
[1721351898946,3.03252296,3398.1,3397.3,0.1500639]
[1721351899162,2.94299,3397.9,3397.3,0.1500639]
[1721351899463,5.549,3397.8,3397.3,0.1500639]
[1721351899681,2.94322,3397.7,3397.3,0.1500639]
[1721351899981,3.03226434,3397.6,3397.3,0.1500639]
[1721351900383,2.94335,3397.5,3397.3,0.1500639]
[1721351900544,3.62968158,3397.4,3397.3,0.1500639]
[1721351901280,6.57310158,3397.4,3397.3,0.1500639]
[1721351903686,12.06552158,3397.4,3397.3,0.1500639]
[1721351903892,14.93012158,3397.4,3397.3,0.1500639]
[1721351905408,2.94426,3396.5,3395.7,2.94487]
[1721351905629,2.9443,3396.4,3395.5,2.94504]
[1721351905825,5.549,3396.3,3395.3,5.19801]
[1721351906026,2.94455,3396.1,3395.3,5.19801]
[1721351906317,0.03147701,3396.0,3395.1,2.94535]
[1721351906484,3.03147701,3396.0,3395.3,2.94523]
[1721351906683,3.03147701,3396.0,3395.1,2.94535]
[1721351906684,0.03147701,3396.0,3395.4,2.94516]
[1721351906911,0.03147701,3396.0,3395.3,2.94524]
[1721351907112,1.43397971,3396.0,3395.1,2.94535]
[1721351907412,2.94482,3395.8,3394.9,2.94553]
[1721351907617,4.37861971,3396.0,3395.0,2.94549]
[1721351907839,0.03106254,3395.7,3395.0,2.94549]
[1721351907997,3.0,3395.9,3395.0,2.94549]
[1721351907998,2.94481,3395.8,3395.0,2.94549]
[1721351908336,0.03106254,3395.7,3395.0,2.94549]
[1721351908512,3.03106254,3395.7,3394.8,2.94565]
[1721351908832,2.94504,3395.6,3394.5,2.4666]
[1721351909060,3.0,3395.5,3394.8,2.94562]
[1721351909218,3.03085372,3395.5,3394.9,2.94552]
[1721351909539,0.03085372,3395.5,3394.9,2.94552]
[1721351909831,5.94491,3395.7,3394.9,2.94552]
[1721351910058,0.03082613,3395.4,3394.5,2.4666]
[1721351910340,0.8525027,3396.0,3395.2,2.94529]
[1721351910341,0.03079854,3395.3,3395.2,2.94529]
[1721351910539,3.0,3396.2,3395.2,2.94529]
[1721351910741,2.94464,3396.0,3395.2,2.94529]
[1721351910906,2.94464,3396.0,3395.0,2.94544]
[1721351910907,2.9449,3395.8,3395.0,2.94544]
[1721351911105,2.94499,3395.6,3394.8,2.94564]
[1721351911317,2.549,3395.0,3394.4,2.94596]
[1721351911518,3.0,3394.9,3394.3,2.94609]
[1721351911733,3.03055754,3394.9,3394.3,2.94609]
[1721351911948,3.03055754,3394.9,3394.4,2.94601]
[1721351912237,3.03055754,3394.9,3394.3,2.94606]
[1721351912433,0.55795575,3394.8,3394.3,2.94606]
[1721351912634,3.03055754,3394.9,3394.3,2.94606]
[1721351912935,2.28206297,3394.8,3394.2,2.94619]
[1721351913138,0.03036297,3394.8,3394.2,2.94619]
[1721351913341,0.03036297,3394.8,3394.1,2.94623]
[1721351913551,0.03036297,3394.8,3394.2,2.94617]
[1721351913759,0.88284227,3394.8,3394.2,2.94617]
[1721351914838,0.88284227,3394.8,3394.3,2.9461]
[1721351915036,0.03036297,3394.8,3394.1,2.94628]
[1721351915244,0.03036297,3394.8,3394.5,2.94586]
[1721351915429,0.03036297,3394.8,3394.5,2.94588]
[1721351915748,0.0290827,3394.7,3394.3,2.94603]
[1721351915976,3.0,3395.3,3394.6,2.9458]
[1721351916187,0.849409,3395.2,3394.6,2.9458]
[1721351916328,3.794799,3395.2,3394.4,2.94596]
[1721351916525,3.0,3395.1,3394.4,2.94596]
[1721351917077,3.0,3395.1,3394.7,2.94575]
[1721351917363,0.849409,3395.2,3394.7,2.94575]
[1721351917569,0.38653502,3395.1,3394.5,2.94587]
[1721351917777,0.38653502,3395.1,3394.1,2.94627]
[1721351918067,2.94504,3395.6,3394.1,2.94627]
[1721351918068,1.143862,3395.7,3395.2,2.94533]
[1721351918283,1.143862,3395.7,3395.3,2.94519]
[1721351918573,2.94457,3396.1,3395.4,2.94515]
[1721351918963,2.94464,3396.0,3395.2,2.94527]
[1721351919131,2.549,3395.8,3395.0,2.94546]
[1721351919332,2.9449,3395.7,3395.0,2.94546]
[1721351919632,2.549,3395.4,3394.3,9.9672]
[1721351919834,2.549,3394.6,3393.8,3.0965739]
[1721351920046,2.549,3394.6,3394.1,2.94626]
[1721351920446,3.0,3394.5,3394.1,2.94626]
[1721351921042,3.0,3394.5,3394.2,2.94618]
[1721351921249,3.0,3394.5,3394.4,2.94602]
[1721351921564,3.0,3394.9,3394.4,2.94602]
[1721351921871,3.0,3394.9,3394.2,2.94613]
[1721351921872,0.5549,3394.8,3394.2,2.94613]
[1721351922477,0.5549,3394.8,3394.3,2.94611]
[1721351922680,0.5549,3394.8,3394.4,2.94601]
[1721351922897,0.5549,3394.8,3394.2,2.94613]
[1721351923179,0.5549,3394.8,3394.3,2.94611]
[1721351923542,0.5549,3394.8,3394.1,2.94622]
[1721351923745,0.904943,3394.7,3393.8,3.0965739]
[1721351924046,0.904943,3394.7,3394.0,2.9463]
[1721351924662,3.904943,3394.7,3394.0,2.9463]
[1721351924838,3.904943,3394.7,3394.1,2.94628]
[1721351925438,2.549,3394.5,3393.8,0.1500639]
[1721351925682,3.6453943,3394.4,3393.8,0.1500639]
[1721351925842,6.5914143,3394.4,3393.8,0.1500639]
[1721351926440,2.94612,3394.3,3393.8,0.1500639]
[1721351926640,3.0,3394.2,3393.8,0.1500639]
[1721351927376,5.94621,3394.2,3393.8,0.1500639]
[1721351927691,3.50277243,3394.1,3393.8,0.1500639]
[1721351927870,3.53180565,3394.1,3393.8,0.1500639]
[1721351928047,5.94639,3394.0,3393.8,0.1500639]
[1721351928446,0.02900754,3393.9,3393.8,0.1500639]
[1721351929790,0.02885711,3393.9,3393.8,0.1500639]
[1721351929965,3.0,3394.4,3393.8,0.1500639]
[1721351930166,1.40391455,3394.3,3393.8,0.1500639]
[1721351930877,1.40391455,3394.3,3393.9,2.9464]
[1721351931075,0.02896755,3394.3,3394.1,2.94628]
[1721351931284,0.02896755,3394.3,3393.8,0.1500639]
[1721351931285,0.02896755,3394.3,3394.0,2.94632]
[1721351931590,2.94569,3394.8,3394.0,2.94632]